fUSD/lending_fUSD_20240201
["ID","MTS","AMOUNT","RATE_DAILY","PERIOD"]
[313127439,1706779849589,-500.0,0.00033161,2]
[313127440,1706779849598,-1002.81674113,0.000332,3]
[313127441,1706779849607,-728.56882215,0.00033247,6]
[313127442,1706779849616,-13659.53389252,0.00033271,5]
[313127443,1706779849626,-8300.0,0.000333,2]
[313127444,1706779849640,-4187.57075624,0.000333,4]
[313127445,1706779849649,-5000.0,0.0003335,7]
[313127446,1706779849658,-154.17470861,0.00033393,2]
[313127447,1706779849668,-234.01866348,0.000334,4]
[313127448,1706779849678,-1000.0,0.000334,2]
[313127449,1706779849688,-200.0,0.000334,2]
[313127450,1706779849697,-484.2269867,0.00033401,2]
[313127451,1706779849706,-92078.9869138,0.00033401,2]
[313127452,1706779849717,-11788.0398619,0.00033401,2]
[313127453,1706779849726,-155.56683335,0.00033421,4]
[313127454,1706779849735,-2807.51865324,0.00033422,4]
[313127455,1706779849745,-312.45853588,0.00033422,4]
[313127456,1706779849754,-175.71218268,0.00033422,4]
[313127457,1706779849763,-203.09967168,0.00033422,4]
[313127458,1706779849772,-521.05,0.00033422,2]
[313127459,1706779849782,-500.0,0.00033422,2]
[313127460,1706779849793,-500.0,0.00033423,7]
[313127461,1706779849803,-500.0,0.00033423,2]
[313127462,1706779849812,-500.0,0.00033423,2]
[313127463,1706779849821,-606.44,0.00033423,2]
[313127464,1706779849830,-500.0,0.00033423,2]
[313127465,1706779849839,-500.0,0.00033423,2]
[313127466,1706779849849,-500.0,0.00033423,2]
[313127467,1706779849859,-1540.6,0.00033423,2]
[313127468,1706779849868,-595.6,0.00033423,2]
[313127469,1706779849876,-500.0,0.00033423,2]
[313127470,1706779849885,-1338.46,0.00033423,2]
[313127471,1706779849895,-500.0,0.00033423,2]
[313127472,1706779849904,-500.0,0.00033423,2]
[313127473,1706779849914,-500.0,0.00033423,2]
[313127474,1706779849923,-500.0,0.00033423,2]
[313127475,1706779849932,-500.0,0.00033423,2]
[313127476,1706779849942,-500.0,0.00033423,2]
[313127477,1706779849951,-2075.49,0.00033423,2]
[313127478,1706779849961,-717.31,0.00033423,2]
[313127479,1706779849970,-500.0,0.00033423,2]
[313127480,1706779849980,-585.86,0.00033423,2]
[313127481,1706779849989,-500.0,0.00033423,2]
[313127482,1706779849999,-500.0,0.00033423,2]
[313127483,1706779850009,-500.0,0.00033423,2]
[313127484,1706779850019,-593.9,0.00033423,2]
[313127485,1706779850028,-500.0,0.00033423,2]
[313127486,1706779850038,-500.0,0.00033423,2]
[313127487,1706779850047,-407.90567522,0.00033423,2]
[313127488,1706779850057,-500.0,0.00033423,2]
[313127489,1706779850067,-669.94,0.00033423,2]
[313127490,1706779850077,-500.0,0.00033423,2]
[313127491,1706779850087,-925.75,0.00033423,2]
[313127492,1706779850098,-500.0,0.00033423,2]
[313127493,1706779850108,-1433.23,0.00033423,2]
[313127494,1706779850118,-500.0,0.00033423,2]
[313127495,1706779850127,-500.0,0.00033423,2]
[313127496,1706779850137,-804.97,0.00033423,2]
[313127497,1706779850146,-500.0,0.00033423,2]
[313127498,1706779850156,-500.0,0.00033423,2]
[313127499,1706779850167,-657.73,0.00033423,2]
[313127500,1706779850177,-500.0,0.00033423,2]
[313127501,1706779850187,-500.0,0.00033423,2]
[313127502,1706779850197,-500.0,0.00033423,2]
[313127503,1706779850207,-500.0,0.00033423,2]
[313127504,1706779850217,-500.0,0.00033423,2]
[313127505,1706779850227,-1190.5,0.00033423,5]
[313127506,1706779850237,-500.0,0.00033423,2]
[313127507,1706779850247,-500.0,0.00033423,2]
[313127508,1706779850257,-1208.78,0.00033423,2]
[313127509,1706779850268,-625.73,0.00033423,2]
[313127510,1706779850278,-500.0,0.00033423,2]
[313127511,1706779850288,-1305.5,0.00033423,2]
[313127512,1706779850298,-500.0,0.00033423,2]
[313127513,1706779850308,-500.0,0.00033423,2]
[313127514,1706779850318,-500.0,0.00033423,2]
[313127515,1706779850328,-534.07,0.00033423,2]
[313127516,1706779850337,-500.0,0.00033423,2]
[313127517,1706779850347,-500.0,0.00033423,2]
[313127518,1706779850358,-701.92,0.00033423,2]
[313127519,1706779850367,-500.0,0.00033423,2]
[313127520,1706779850377,-627.26,0.00033423,2]
[313127521,1706779850388,-500.0,0.00033423,2]
[313127522,1706779850397,-500.0,0.00033423,2]
[313127523,1706779850407,-500.0,0.00033423,2]
[313127524,1706779850416,-986.24,0.00033423,2]
[313127525,1706779850425,-500.0,0.00033423,2]
[313127526,1706779850435,-762.1,0.00033423,2]
[313127527,1706779850444,-655.35,0.00033423,5]
[313127528,1706779850453,-624.83,0.00033423,2]
[313127529,1706779850463,-795.63,0.00033423,2]
[313127530,1706779850473,-500.0,0.00033423,2]
[313127531,1706779850483,-500.0,0.00033423,2]
[313127532,1706779850493,-816.05,0.00033423,2]
[313127533,1706779850503,-557.84,0.00033423,2]
[313127534,1706779850512,-706.15,0.00033423,2]
[313127535,1706779850521,-500.0,0.00033423,2]
[313127536,1706779850530,-500.0,0.00033423,2]
[313127537,1706779850541,-176.85093205,0.00033424,4]
[313127538,1706779850550,-336.01542095,0.00033424,4]
[313127539,1706779850558,-200.0,0.00033424,2]
[313127540,1706779850568,-616.28,0.00033424,2]
[313127541,1706779850577,-500.0,0.00033424,2]
[313127542,1706779850587,-987.61,0.00033424,2]
[313127543,1706779850597,-500.0,0.00033424,2]
[313127544,1706779850607,-500.0,0.00033424,2]
[313127545,1706779850617,-881.41,0.00033424,2]
[313127546,1706779850627,-500.0,0.00033424,2]
[313127547,1706779850639,-329.47433622,0.00033424,2]
[313127548,1706779850854,-559.22566378,0.00033424,2]
[313127549,1706779850863,-500.0,0.00033424,2]
[313127550,1706779850873,-8305.95,0.00033424,2]
[313127551,1706779850883,-651.09,0.00033424,2]
[313127552,1706779850893,-500.0,0.00033424,2]
[313127553,1706779850902,-1275.47,0.00033424,2]
[313127554,1706779850912,-2320.53,0.00033424,2]
[313127555,1706779850922,-500.0,0.00033424,2]
[313127556,1706779850931,-500.0,0.00033424,2]
[313127557,1706779850941,-969.56,0.00033424,2]
[313127558,1706779850951,-500.0,0.00033424,2]
[313127559,1706779850960,-500.0,0.00033424,2]
[313127560,1706779850969,-500.0,0.00033424,2]
[313127561,1706779850978,-575.64,0.00033424,2]
[313127562,1706779850989,-1888.14,0.00033425,2]
[313127563,1706779850999,-403.35,0.00033425,2]
[313127564,1706779851008,-403.35,0.00033425,2]
[313127565,1706779851018,-1000.0,0.00033425,4]
[313127566,1706779851028,-199.38,0.00033485,2]
[313127567,1706779851039,-1044.4885598,0.000335,2]
[313127568,1706779851049,-300.0,0.000335,6]
[313127569,1706779851059,-1000.0,0.00033699,4]
[313127570,1706779851068,-2978.01535429,0.000337,2]
[313127571,1706779851086,-1753.99361383,0.000337,2]
[313127572,1706779851099,-306.979227,0.000337,2]
[313127573,1706779851111,-464.205,0.000337,2]
[313127574,1706779851123,-471.51680488,0.000337,2]
[313127575,1706779851134,-2294.5210836,0.00033731,2]
[313127576,1706779851144,-1479.80827811,0.00033731,2]
[313127577,1706779851161,-1069.5,0.00033731,2]
[313127578,1706779851176,-4006.77447979,0.00033731,2]
[313127579,1706779851186,-1000.0,0.00033765,2]
[313127580,1706779851196,-153.87,0.0003379,2]
[313127581,1706779851206,-150.0,0.00033799,2]
[313127582,1706779851216,-150.0,0.00033799,2]
[313127583,1706779851225,-18780.58729663,0.000338,2]
[313127584,1706779851237,-1000.00663,0.000338,2]
[313127585,1706779851248,-2084.81850252,0.000338,2]
[313127586,1706779851261,-395.84587954,0.000338,2]
[313127587,1706779851273,-296.43501175,0.000338,2]
[313127588,1706779851448,-500.0,0.00029039,2]
[313127589,1706779851459,-500.0,0.00029039,2]
[313127590,1706779851471,-178.75,0.00029578,10]
[313127591,1706779851481,-500.0,0.00029587,2]
[313127592,1706779851491,-500.0,0.00029587,2]
[313127593,1706779851500,-487.31897559,0.00029587,2]
[313127594,1706779851512,-12.68102441,0.00029587,2]
[313127595,1706779851521,-287.74149088,0.00030135,2]
[313127596,1706779851532,-258.168,0.00032058,2]
[313127597,1706779851542,-141979.81628214,0.000338,2]
[313127598,1706779851554,-286.2835821,0.000338,2]
[313127599,1706779851565,-950.1887247,0.000338,2]
[313127600,1706779851576,-5829.02392874,0.000338,2]
[313127601,1706779851588,-13394.24026246,0.000338,2]
[313127602,1706779851600,-566.05,0.000338,2]
[313127603,1706779851611,-454.62,0.000338,2]
[313127604,1706779851623,-746.51464236,0.000338,2]
[313127605,1706779851635,-946.66328717,0.000338,2]
[313127606,1706779851678,-500.0,0.00030135,2]
[313127607,1706779851688,-530.9012373,0.00030683,2]
[313127608,1706779851697,-290.1226565,0.000323,2]
[313127609,1706779851707,-428.18257618,0.000338,2]
[313127610,1706779851721,-470.69889728,0.000338,2]
[313127611,1706779851829,-1062.34025431,0.00029038,2]
[313127612,1706779851839,-1375.07063722,0.00029038,2]
[313127613,1706779851849,-427.0,0.00031746,2]
[313127614,1706779851858,-2140.81327111,0.000338,2]
[313127615,1706779851870,-15700.17262063,0.000338,2]
[313127616,1706779851882,-4582.85592,0.000338,2]
[313127617,1706779851894,-984.08652483,0.000338,2]
[313127618,1706779851905,-14971.82184775,0.000338,2]
[313127619,1706779851971,-275.54883727,0.000338,2]
[313127620,1706779851983,-651.33802245,0.000338,2]
[313127621,1706779852190,-932.14062538,0.00029586,2]
[313127622,1706779852206,-3567.54613779,0.00029586,2]
[313127623,1706779852215,-155.0,0.00029586,2]
[313127624,1706779852225,-150.01,0.00030957,2]
[313127625,1706779852234,-7502.4438624,0.000338,2]
[313127626,1706779852274,-5103.12280005,0.000338,2]
[313127627,1706779852286,-6197.81550212,0.000338,2]
[313127640,1706780243658,159.53,0.0002819,120]
[313127650,1706780744219,-338.11095919,0.00026205,2]
[313127651,1706780744240,-282.04190656,0.00026206,2]
[313127652,1706780744261,-1073.8119729,0.00026206,2]
[313127653,1706780744287,-220.25,0.00026218,2]
[313127654,1706780757901,85.78516135,0.00026246,2]
[313127655,1706780757922,123.44483865,0.00026246,2]
[313127656,1706780879438,184.37864884,0.00026823,2]
[313127667,1706781032247,-806.00552617,0.00026923,2]
[313127668,1706781032256,-151.47981337,0.00026923,2]
[313127669,1706781032266,-806.00552617,0.00026924,2]
[313127670,1706781032274,-149.12519656,0.00026924,2]
[313127685,1706781038245,-261.79480344,0.00026924,2]
[313127686,1706781038255,-541.56519656,0.00027022,2]
[313127687,1706781038306,-196.22480344,0.00027022,2]
[313127688,1706781038315,-725.87,0.00027023,2]
[313127689,1706781038325,-732.33,0.00027023,2]
[313127690,1706781038334,-721.17,0.00027023,2]
[313127691,1706781038345,-150.0,0.00027023,2]
[313127692,1706781038354,-165.0,0.00027024,2]
[313127693,1706781038363,-2294.26182346,0.00027024,2]
[313127694,1706781038472,-436.800001,0.00027024,2]
[313127698,1706781040700,-4220.57437554,0.00027024,2]
[313127699,1706781040709,-712.44,0.00027024,2]
[313127700,1706781040719,-727.32,0.00027024,2]
[313127701,1706781040730,-731.45,0.00027024,2]
[313127702,1706781040740,-1104.25,0.00027024,2]
[313127703,1706781040751,-151.47981324,0.00027317,2]
[313127704,1706781040761,-153.25,0.00027397,2]
[313127705,1706781040771,-154.01,0.00027397,2]
[313127706,1706781040782,-151.47981324,0.00027711,2]
[313127707,1706781040791,-153.25,0.00027808,2]
[313127708,1706781040800,-2615.0,0.00028,2]
[313127709,1706781040809,-4612.0,0.000281,2]
[313127710,1706781040818,-151.47981324,0.00028104,2]
[313127711,1706781040829,-379.6,0.00028132,2]
[313127712,1706781040839,-1283.19,0.00028164,2]
[313127713,1706781040849,-600.0,0.00028164,2]
[313127714,1706781040860,-1582.03,0.00028164,2]
[313127715,1706781040871,-169.23,0.00028164,2]
[313127716,1706781040881,-164.1,0.00028164,2]
[313127717,1706781040890,-250.0,0.00028208,2]
[313127718,1706781040901,-153.25,0.00028219,2]
[313127719,1706781040912,-400.0,0.00028227,2]
[313127720,1706781040922,-157.63239342,0.00028375,2]
[313127721,1706781040931,-154.01,0.00028425,2]
[313127722,1706781040942,-151.47981324,0.00028498,2]
[313127723,1706781040951,-209.23,0.0002851,2]
[313127724,1706781040961,-153.25,0.0002863,2]
[313127725,1706781040971,-221.37,0.00028765,2]
[313127726,1706781040982,-748.49,0.00028774,2]
[313127727,1706781040992,-150.0,0.00028788,2]
[313127728,1706781041002,-153.38,0.00028854,2]
[313127729,1706781041012,-151.47981324,0.00028892,2]
[313127730,1706781041024,-748.49,0.0002894,2]
[313127731,1706781041033,-290.40617084,0.00029,2]
[313127732,1706781041042,-306.97180835,0.00029038,2]
[313127733,1706781041050,-641.73862928,0.00029039,2]
[313127734,1706781041062,-153.25,0.00029041,2]
[313127735,1706781041071,-748.49,0.00029106,2]
[313127736,1706781041081,-748.49,0.00029272,2]
[313127737,1706781041093,-151.47981324,0.00029286,2]
[313127738,1706781041102,-177.39,0.00029322,2]
[313127739,1706781041112,-8285.66587493,0.00029375,2]
[313127740,1706781041122,-748.49,0.00029439,2]
[313127741,1706781041131,-153.25,0.00029452,2]
[313127742,1706781041141,-154.01,0.00029452,2]
[313127743,1706781041150,-379.6,0.00029539,2]
[313127744,1706781041159,-198.31990225,0.00029585,2]
[313127745,1706781041168,-525.14111117,0.00029586,2]
[313127746,1706781041177,-164.71138132,0.00029586,2]
[313127747,1706781041186,-500.0,0.00029586,2]
[313127748,1706781041195,-500.0,0.00029586,2]
[313127749,1706781041205,-500.0,0.00029586,2]
[313127750,1706781041214,-605.97,0.00029586,2]
[313127751,1706781041223,-500.0,0.00029586,2]
[313127752,1706781041233,-500.0,0.00029586,2]
[313127753,1706781041242,-500.0,0.00029586,2]
[313127754,1706781041251,-500.0,0.00029586,2]
[313127755,1706781041260,-500.0,0.00029586,2]
[313127756,1706781041270,-500.0,0.00029586,2]
[313127757,1706781041279,-500.0,0.00029586,2]
[313127758,1706781041289,-500.0,0.00029586,2]
[313127759,1706781041298,-748.49,0.00029605,2]
[313127760,1706781041307,-153.38,0.00029606,2]
[313127761,1706781041316,-151.47981324,0.00029679,2]
[313127762,1706781041325,-210.0,0.00029725,2]
[313127763,1706781041334,-748.49,0.00029771,2]
[313127764,1706781041344,-164.1,0.00029807,2]
[313127765,1706781041353,-153.25,0.00029863,2]
[313127766,1706781041362,-748.49,0.00029937,2]
[313127767,1706781041371,-451.91910695,0.0003,2]
[313127768,1706781041381,-500.0,0.0003,2]
[313127769,1706781041390,-174.65,0.00030051,2]
[313127770,1706781041399,-151.47981324,0.00030073,2]
[313127771,1706781041409,-748.49,0.00030104,2]
[313127772,1706781041418,-500.0,0.00030134,2]
[313127773,1706781041427,-445.64971397,0.00030134,2]
[313127774,1706781041436,-500.0,0.00030134,2]
[313127775,1706781041446,-605.97,0.00030134,2]
[313127776,1706781041455,-500.0,0.00030134,2]
[313127777,1706781041464,-500.0,0.00030134,2]
[313127778,1706781041473,-500.0,0.00030134,2]
[313127779,1706781041483,-500.0,0.00030134,2]
[313127780,1706781041492,-500.0,0.00030134,2]
[313127781,1706781041501,-500.0,0.00030134,2]
[313127782,1706781041510,-500.0,0.00030134,2]
[313127783,1706781041519,-748.49,0.0003027,2]
[313127784,1706781041528,-153.25,0.00030274,2]
[313127785,1706781041537,-153.38,0.00030358,2]
[313127786,1706781041546,-282.25014448,0.00030373,4]
[313127787,1706781041555,-151.47981324,0.00030467,2]
[313127788,1706781041564,-154.01,0.00030479,2]
[313127789,1706781041573,-1000.0,0.00030582,2]
[313127790,1706781041582,-500.0,0.00030582,2]
[313127791,1706781041591,-1000.0,0.00030582,2]
[313127792,1706781041601,-6317.5002,0.00030582,2]
[313127793,1706781041610,-206.508,0.00030582,2]
[313127794,1706781041620,-934.2019,0.00030582,2]
[313127795,1706781041629,-893.77,0.00030672,10]
[313127796,1706781041638,-405.37252363,0.0003068,10]
[313127797,1706781041647,-1077.19745706,0.0003068,4]
[313127798,1706781041657,-1081.82762118,0.0003068,2]
[313127799,1706781041666,-268.56411695,0.0003068,4]
[313127800,1706781041676,-155.78553359,0.00030681,4]
[313127801,1706781041685,-500.0,0.00030681,2]
[313127802,1706781041694,-500.0,0.00030681,7]
[313127803,1706781041703,-500.0,0.00030681,2]
[313127804,1706781041713,-500.0,0.00030681,2]
[313127805,1706781041722,-500.0,0.00030681,2]
[313127806,1706781041731,-500.0,0.00030681,2]
[313127807,1706781041740,-500.0,0.00030681,2]
[313127808,1706781041749,-500.0,0.00030681,2]
[313127809,1706781041759,-500.0,0.00030681,2]
[313127810,1706781041768,-500.0,0.00030681,2]
[313127811,1706781041777,-500.0,0.00030681,2]
[313127812,1706781041786,-500.0,0.00030681,2]
[313127813,1706781041795,-500.0,0.00030681,2]
[313127814,1706781041804,-500.0,0.00030681,2]
[313127815,1706781041813,-500.0,0.00030681,2]
[313127816,1706781041822,-500.0,0.00030681,2]
[313127817,1706781041830,-500.0,0.00030681,2]
[313127818,1706781041839,-611.48,0.00030681,2]
[313127819,1706781041850,-5842.45,0.00030681,2]
[313127820,1706781041858,-500.0,0.00030681,2]
[313127821,1706781041867,-500.0,0.00030681,2]
[313127822,1706781041877,-45961.48700282,0.00030682,2]
[313127823,1706781041886,-500.0,0.00030682,2]
[313127824,1706781041895,-500.0,0.00030682,2]
[313127825,1706781041904,-605.97,0.00030682,2]
[313127826,1706781041912,-500.0,0.00030682,2]
[313127827,1706781041921,-500.0,0.00030682,2]
[313127828,1706781041930,-500.0,0.00030682,2]
[313127829,1706781041939,-500.0,0.00030682,2]
[313127830,1706781041948,-500.0,0.00030682,2]
[313127831,1706781041957,-500.0,0.00030682,2]
[313127832,1706781041966,-500.0,0.00030682,2]
[313127833,1706781041975,-797.17,0.00030682,2]
[313127834,1706781041984,-500.0,0.00030682,2]
[313127835,1706781041993,-500.0,0.00030682,2]
[313127836,1706781042002,-500.0,0.00030682,2]
[313127837,1706781042012,-744.07,0.00030682,5]
[313127838,1706781042023,-500.0,0.00030682,2]
[313127839,1706781042032,-500.0,0.00030682,2]
[313127840,1706781042041,-500.0,0.00030682,2]
[313127841,1706781042050,-500.0,0.00030682,2]
[313127842,1706781042059,-500.0,0.00030682,2]
[313127843,1706781042069,-570.8,0.00030682,2]
[313127844,1706781042078,-500.0,0.00030682,2]
[313127845,1706781042087,-2391.68,0.00030682,2]
[313127846,1706781042098,-500.0,0.00030682,2]
[313127847,1706781042107,-153.25,0.00030685,2]
[313127848,1706781042116,-3134.76429599,0.00030709,4]
[313127849,1706781042125,-500.0,0.0003071,2]
[313127850,1706781042135,-209.23,0.00030774,2]
[313127851,1706781042144,-151.47981324,0.00030861,2]
[313127852,1706781042153,-176.62997183,0.00030916,4]
[313127853,1706781042162,-379.6,0.00030945,2]
[313127854,1706781042170,-1500.2,0.00031,2]
[313127855,1706781042179,-153.87,0.00031039,2]
[313127856,1706781042189,-500.0,0.00031072,2]
[313127857,1706781042198,-200.0,0.00031072,2]
[313127858,1706781042208,-153.25,0.00031096,2]
[313127859,1706781042217,-2000.0,0.0003113,4]
[313127860,1706781042226,-500.0,0.00031228,2]
[313127861,1706781042236,-500.0,0.00031228,2]
[313127862,1706781042245,-500.0,0.00031228,2]
[313127863,1706781042254,-500.0,0.00031228,2]
[313127864,1706781042264,-500.0,0.00031228,2]
[313127865,1706781042273,-562.41,0.00031228,2]
[313127866,1706781042282,-500.0,0.00031228,2]
[313127867,1706781042292,-500.0,0.00031228,2]
[313127868,1706781042302,-790.45,0.00031228,2]
[313127869,1706781042311,-500.0,0.00031228,2]
[313127870,1706781042320,-500.0,0.00031228,2]
[313127871,1706781042329,-500.0,0.00031228,2]
[313127872,1706781042339,-500.0,0.00031228,2]
[313127873,1706781042349,-500.0,0.00031228,2]
[313127874,1706781042535,-500.0,0.00031228,2]
[313127875,1706781042545,-895.77,0.00031228,2]
[313127876,1706781042554,-836.53,0.00031228,2]
[313127877,1706781042563,-500.0,0.00031228,2]
[313127878,1706781042573,-500.0,0.00031228,2]
[313127879,1706781042582,-616.4,0.00031228,2]
[313127880,1706781042592,-513.0710692,0.00031228,2]
[313127881,1706781042603,-500.0,0.00031228,2]
[313127882,1706781042612,-500.0,0.00031228,2]
[313127883,1706781042622,-500.0,0.00031228,2]
[313127884,1706781042632,-500.0,0.00031228,2]
[313127885,1706781042641,-500.0,0.00031228,2]
[313127886,1706781042651,-1297.18,0.00031228,2]
[313127887,1706781042660,-500.0,0.00031228,2]
[313127888,1706781042669,-457.78620398,0.00031228,2]
[313127889,1706781042678,-155.0,0.00031229,2]
[313127890,1706781042687,-693.05480847,0.00031229,2]
[313127891,1706781042696,-500.0,0.00031229,2]
[313127892,1706781042706,-500.0,0.00031229,7]
[313127893,1706781042715,-337.32246905,0.00031229,2]
[313127894,1706781042724,-500.0,0.00031229,2]
[313127895,1706781042734,-500.0,0.00031229,2]
[313127896,1706781042742,-500.0,0.00031229,2]
[313127897,1706781042752,-500.0,0.00031229,2]
[313127898,1706781042761,-500.0,0.00031229,2]
[313127899,1706781042770,-500.0,0.00031229,2]
[313127900,1706781042779,-500.0,0.00031229,2]
[313127901,1706781042788,-500.0,0.00031229,2]
[313127902,1706781042798,-500.0,0.00031229,2]
[313127903,1706781042807,-500.0,0.00031229,2]
[313127904,1706781042817,-578.59,0.00031229,2]
[313127905,1706781042826,-500.0,0.00031229,2]
[313127906,1706781042835,-500.0,0.00031229,2]
[313127907,1706781042843,-191.4318068,0.00031229,2]
[313127908,1706781042854,-500.0,0.00031229,2]
[313127909,1706781042863,-500.0,0.00031229,2]
[313127910,1706781042872,-500.0,0.00031229,2]
[313127911,1706781042882,-500.0,0.00031229,2]
[313127912,1706781042890,-500.0,0.00031229,2]
[313127913,1706781042899,-500.0,0.00031229,2]
[313127914,1706781042909,-500.0,0.00031229,2]
[313127915,1706781042918,-500.0,0.00031229,2]
[313127916,1706781042927,-500.0,0.00031229,2]
[313127917,1706781042936,-500.0,0.00031229,2]
[313127918,1706781042946,-815.94,0.00031229,2]
[313127919,1706781042954,-500.0,0.00031229,2]
[313127920,1706781042964,-500.0,0.00031229,2]
[313127921,1706781042972,-500.0,0.00031229,2]
[313127922,1706781042982,-500.0,0.00031229,2]
[313127923,1706781042991,-500.0,0.00031229,2]
[313127924,1706781043000,-500.0,0.00031229,2]
[313127925,1706781043010,-500.0,0.00031229,2]
[313127926,1706781043022,-500.0,0.00031229,2]
[313127927,1706781043031,-500.0,0.00031229,2]
[313127928,1706781043041,-500.0,0.00031229,2]
[313127929,1706781043050,-500.0,0.00031229,2]
[313127930,1706781043059,-500.0,0.00031229,2]
[313127931,1706781043068,-500.0,0.00031229,2]
[313127932,1706781043077,-500.0,0.00031229,5]
[313127933,1706781043086,-500.0,0.00031229,2]
[313127934,1706781043096,-962.88,0.00031229,2]
[313127935,1706781043105,-500.0,0.00031229,2]
[313127936,1706781043115,-500.0,0.00031229,2]
[313127937,1706781043124,-510.04,0.00031229,2]
[313127938,1706781043133,-500.0,0.00031229,2]
[313127939,1706781043142,-5842.45,0.00031229,2]
[313127940,1706781043151,-500.0,0.00031229,2]
[313127941,1706781043160,-500.0,0.00031229,2]
[313127942,1706781043169,-500.0,0.00031229,2]
[313127943,1706781043178,-500.0,0.00031229,2]
[313127944,1706781043187,-500.0,0.00031229,2]
[313127945,1706781043196,-500.0,0.00031229,2]
[313127946,1706781043206,-1252.43284073,0.0003123,4]
[313127947,1706781043215,-305.49944644,0.0003123,4]
[313127948,1706781043224,-500.0,0.0003123,2]
[313127949,1706781043234,-500.0,0.0003123,2]
[313127950,1706781043243,-605.97,0.0003123,2]
[313127951,1706781043252,-500.0,0.0003123,2]
[313127952,1706781043262,-500.0,0.0003123,2]
[313127953,1706781043271,-500.0,0.0003123,2]
[313127954,1706781043281,-500.0,0.0003123,2]
[313127955,1706781043290,-500.0,0.0003123,2]
[313127956,1706781043299,-500.0,0.0003123,2]
[313127957,1706781043309,-500.0,0.0003123,2]
[313127958,1706781043318,-797.17,0.0003123,2]
[313127959,1706781043328,-500.0,0.0003123,2]
[313127960,1706781043337,-500.0,0.0003123,2]
[313127961,1706781043349,-323.63317916,0.0003123,2]
[313127962,1706781043358,-744.07,0.0003123,5]
[313127963,1706781043368,-500.0,0.0003123,2]
[313127964,1706781043377,-500.0,0.0003123,2]
[313127965,1706781043387,-500.0,0.0003123,2]
[313127966,1706781043397,-231.85166291,0.0003123,2]
[313127967,1706781043406,-500.0,0.0003123,2]
[313127968,1706781043416,-570.8,0.0003123,2]
[313127969,1706781043425,-500.0,0.0003123,2]
[313127970,1706781043434,-2391.68,0.0003123,2]
[313127971,1706781043443,-500.0,0.0003123,2]
[313127972,1706781043452,-151.47981324,0.00031254,2]
[313127973,1706781043462,-200.0,0.00031378,3]
[313127974,1706781043471,-500.0,0.00031434,2]
[313127975,1706781043482,-200.0,0.00031434,2]
[313127976,1706781043491,-164.1,0.00031451,2]
[313127977,1706781043501,-500.0,0.00031506,2]
[313127978,1706781043510,-500.0,0.00031506,2]
[313127979,1706781043519,-500.0,0.00031506,2]
[313127980,1706781043528,-153.25,0.00031507,2]
[313127981,1706781043538,-154.01,0.00031507,2]
[313127982,1706781043547,-606.0,0.00031531,5]
[313127983,1706781043556,-280.57,0.00031562,2]
[313127984,1706781043565,-180.0,0.00031644,2]
[313127985,1706781043575,-151.47981324,0.00031648,2]
[313127986,1706781043584,-500.0,0.00031676,2]